fUSD/lending_fUSD_20250607
["ID","MTS","AMOUNT","RATE_DAILY","PERIOD"]
[364821108,1749254408659,698.46,0.000315,120]
[364821109,1749254430980,150.0,0.00035558,120]
[364821111,1749254629455,15879.98538207,0.0003561,120]
[364821112,1749254670742,150.0,0.00035341,120]
[364821114,1749254790607,150.0,0.0003516,120]
[364821117,1749255032030,-3674.1844512,0.0001939,2]
[364821118,1749255032040,-480.0,0.0002,4]
[364821119,1749255032049,-301.27498413,0.0002,7]
[364821120,1749255032059,-214.55,0.00020187,2]
[364821121,1749255032069,-974.76,0.00024043,2]
[364821122,1749255032078,-206.0,0.00024307,2]
[364821123,1749255032088,-200.0,0.00025758,2]
[364821124,1749255032097,-1200.0,0.00025776,2]
[364821125,1749255032107,-300.0,0.00025777,2]
[364821126,1749255032117,-850.0,0.00025777,2]
[364821127,1749255032126,-168.0,0.00025777,2]
[364821128,1749255032150,-250.0,0.00025778,2]
[364821129,1749255032172,-23900.0,0.00025778,2]
[364821130,1749255032183,-1000.0,0.00025831,2]
[364821131,1749255032192,-1719.3,0.00025887,2]
[364821132,1749255032201,-772.33,0.00025896,2]
[364821133,1749255032211,-401.09447805,0.000259,14]
[364821134,1749255032220,-633.96,0.0002591,2]
[364821135,1749255032229,-221.56,0.00025982,2]
[364821136,1749255032239,-1000.0,0.00025982,2]
[364821137,1749255032248,-1000.0,0.00026038,2]
[364821138,1749255032258,-151.0,0.00026038,2]
[364821139,1749255032268,-207.4,0.00026038,2]
[364821140,1749255032277,-163.77,0.00026101,2]
[364821141,1749255032287,-150.0,0.00026132,2]
[364821142,1749255032296,-800.0,0.00026145,4]
[364821144,1749255032308,-341.06,0.00026148,2]
[364821145,1749255032317,-974.76,0.00026307,2]
[364821146,1749255032326,-401.09447794,0.00026314,14]
[364821147,1749255032336,-294.46,0.00026328,30]
[364821148,1749255032345,-500.0,0.00026355,2]
[364821150,1749255032354,-200.0,0.00026483,2]
[364821152,1749255032363,-164.27,0.00026492,2]
[364821153,1749255032373,-214.55,0.00026676,2]
[364821154,1749255032382,-401.09447794,0.00026728,15]
[364821155,1749255032392,-344.299294,0.00026734,6]
[364821156,1749255032401,-200.0,0.00026734,6]
[364821157,1749255032410,-150.0,0.00027,7]
[364821158,1749255032419,-612.0,0.00027,7]
[364821159,1749255032429,-163.22,0.00027051,2]
[364821160,1749255032438,-163.16,0.00027051,2]
[364821161,1749255032447,-163.22,0.00027051,2]
[364821163,1749255032456,-163.22,0.00027051,2]
[364821165,1749255032465,-163.22,0.00027051,2]
[364821167,1749255032475,-163.22,0.00027051,2]
[364821169,1749255032485,-163.22,0.00027051,2]
[364821171,1749255032495,-181.88,0.00027051,2]
[364821173,1749255032505,-163.22,0.00027051,2]
[364821174,1749255032514,-163.22,0.00027051,2]
[364821176,1749255032524,-163.22,0.00027051,2]
[364821178,1749255032533,-163.22,0.00027051,2]
[364821180,1749255032543,-401.09447794,0.00027141,16]
[364821182,1749255032552,-2146.887,0.00027273,16]
[364821183,1749255032562,-187.485,0.00027273,16]
[364821185,1749255032571,-150.0,0.00027279,16]
[364821187,1749255032581,-124.65458727,0.00027282,6]
[364821190,1749255032594,-81.34541273,0.00027282,6]
[364821192,1749255032603,-1468.8922,0.00027287,2]
[364821194,1749255032615,-1132.64857,0.0002729,2]
[364821196,1749255032624,-7226.73781898,0.0002729,2]
[364821198,1749255032633,-180.69557978,0.0002729,2]
[364821199,1749255032643,-474.5747,0.00027297,2]
[364821201,1749255032652,-577.13,0.00027297,2]
[364821204,1749255032661,-1000.0,0.00027297,2]
[364821206,1749255032671,-2500.0,0.00027297,2]
[364821208,1749255032680,-5000.0,0.00027297,2]
[364821210,1749255032689,-2950.88551985,0.00027297,2]
[364821212,1749255032699,-1000.0,0.000273,2]
[364821214,1749255032708,-200.0,0.00027335,2]
[364821216,1749255032718,-7226.73781893,0.00027343,2]
[364821218,1749255032731,-2950.88551985,0.00027352,2]
[364821220,1749255032741,-151.0,0.00027379,30]
[364821222,1749255032751,-33399.77289816,0.00027387,2]
[364821225,1749255032771,-520.59153593,0.00027387,2]
[364821227,1749255032782,-474.87237804,0.00027387,2]
[364821231,1749255032813,-498.07654988,0.00027387,2]
[364821234,1749255032836,-298.1025574,0.00027387,2]
[364821239,1749255032875,-317.159981,0.00027387,2]
[364821718,1749255037926,-1000.0,0.000273,2]
[364821720,1749255037936,-6992.40448755,0.00027386,7]
[364821722,1749255037947,-498.0,0.00027386,7]
[364821725,1749255037958,-940.47575033,0.00027386,7]
[364821727,1749255037969,-1471.80078007,0.00027386,7]
[364821729,1749255037981,-2076.70402768,0.00027386,7]
[364821961,1749255040315,-1049.41419005,0.00027386,7]
[364821963,1749255040330,-1685.77121904,0.00027386,7]
[364821965,1749255040345,-1007.52312096,0.00027386,7]
[364821969,1749255040380,-289.15000193,0.00027386,7]
[364821973,1749255040408,-18309.02751258,0.00027386,7]
[364821977,1749255040521,-2325.0000005,0.00027386,7]
[364821978,1749255040534,-1705.5582732,0.00027386,7]
[364821979,1749255040546,-574.51572812,0.00027386,7]
[364822245,1749255043126,-203.0,0.00024307,2]
[364822247,1749255043135,-403.64798616,0.00027386,7]
[364822966,1749255059309,220.0,0.0003561,120]
[364822967,1749255088631,355.0,0.00035616,120]
[364822968,1749255118517,195.89520549,0.0003561,120]
[364822969,1749255118837,200.0,0.00035616,120]
[364822970,1749255124283,533.0,0.00035616,120]
[364822972,1749255136149,192.37,0.00013699,2]
[364822973,1749255150816,150.0,0.00031868,120]
[364822974,1749255210515,150.0,0.00034092,120]
[364822975,1749255270511,150.0,0.00034166,120]
[364822976,1749255285948,743.74158224,0.00035616,120]
[364822977,1749255352030,184.90488575,0.00035616,120]
[364822978,1749255630490,150.0,0.00035432,120]
[364822979,1749255708731,500.0,0.00035616,120]
[364822980,1749255716963,500.0,0.00035616,120]
[364822981,1749255725433,500.0,0.00035616,120]
[364822982,1749255741753,551.0,0.00035616,120]
[364822983,1749255808248,166.0,0.000356,120]
[364822984,1749255809776,166.0,0.000356,120]
[364822985,1749255838652,166.0,0.000356,120]
[364822987,1749255967408,1092.201055,8e-05,2]
[364822988,1749255990772,150.0,0.00034258,120]
[364822989,1749256003861,150.0,0.000356,120]
[364822990,1749256017632,200.0,0.00035616,120]
[364823002,1749256123769,503.81060726,0.00013368,2]
[364823003,1749256123791,4000.0,0.00013368,2]
[364823004,1749256123813,3992.64685047,0.00013368,2]
[364823010,1749256170853,150.0,0.00033824,120]
[364823011,1749256172206,7.35314953,0.00013699,2]
[364823012,1749256172228,186.12685047,0.00013699,2]
[364823014,1749256218383,1500.0,0.00035616,120]
[364823015,1749256222678,3813.87314953,0.00013537,2]
[364823016,1749256222700,1986.12685047,0.00013537,2]
[364823023,1749256232043,-1821.70115254,0.000194,2]
[364823024,1749256232053,-300.0,0.00019999,2]
[364823025,1749256232063,-800.0,0.0002,4]
[364823026,1749256232072,-3231.52521865,0.0002,2]
[364823027,1749256232099,-7610.40000006,0.0002,2]
[364823028,1749256232111,-3360.0,0.0002,2]
[364823029,1749256232157,-5722.588277,0.0002,2]
[364823030,1749256232169,-1047.85311258,0.0002,2]
[364823031,1749256232324,-1200.0,0.0002,2]
[364823032,1749256232336,-840.0,0.0002,2]
[364823033,1749256232347,-78838.62488679,0.0002,2]
[364823034,1749256232358,-2528.95520549,0.0002,2]
[364823035,1749256232371,-297.31,0.0002,2]
[364823036,1749256232439,-2229.0568171,0.0002,2]
[364823042,1749256238081,-312.84,0.0002,2]
[364823043,1749256238383,-21434.80102853,0.0002,2]
[364823109,1749256240441,-122.41183793,0.0002,2]
[364823110,1749256240456,-379.24461387,0.0002,4]
[364823111,1749256240467,-9909.3435482,0.0002,2]
[364823114,1749256240606,-1042.4581586,0.0002,2]
[364823150,1749256243335,-300.0,0.0002,2]
[364823152,1749256245452,2013.87314953,0.00013529,2]
[364823153,1749256245479,1000.0,0.00013529,2]
[364823154,1749256245505,2786.12685047,0.00013529,2]
[364823161,1749256246327,-300.0,0.00019999,2]
[364823162,1749256246338,-20020.48367933,0.0002,2]
[364823163,1749256246349,-193.48,0.00020187,2]
[364823164,1749256246359,-420.0,0.00021777,2]
[364823165,1749256246370,-800.0,0.00021999,4]
[364823166,1749256246381,-1420.25933158,0.00022037,2]
[364823167,1749256246394,-250.0,0.00022206,2]
[364823168,1749256246405,-800.0,0.00022206,4]
[364823169,1749256246416,-305.1,0.00022815,2]
[364823170,1749256246427,-301.74,0.00022815,2]
[364823171,1749256246437,-303.99,0.00022815,2]
[364823172,1749256246450,-302.33,0.00022815,2]
[364823173,1749256246461,-300.48,0.00022815,2]
[364823174,1749256246471,-305.84,0.00022815,2]
[364823176,1749256246482,-302.92,0.00022815,2]
[364823178,1749256246493,-303.27,0.00022815,2]
[364823180,1749256246503,-304.37,0.00022815,2]
[364823182,1749256246514,-304.14,0.00022815,2]
[364823185,1749256246528,-305.14,0.00022815,2]
[364823187,1749256246539,-305.3,0.00022815,2]
[364823189,1749256246550,-302.81,0.00022815,2]
[364823191,1749256246562,-302.05,0.00022815,2]
[364823193,1749256246572,-300.2,0.00022815,2]
[364823195,1749256246582,-300.32,0.00022815,2]
[364823197,1749256246594,-302.14,0.00022815,2]
[364823200,1749256246605,-300.48,0.00022815,2]
[364823202,1749256246616,-303.89,0.00022815,2]
[364823205,1749256246627,-300.97,0.00022815,2]
[364823208,1749256246638,-302.57,0.00022815,2]
[364823210,1749256246649,-302.52,0.00022815,2]
[364823212,1749256246659,-300.64,0.00022815,2]
[364823214,1749256246670,-302.92,0.00022815,2]
[364823217,1749256246681,-300.09,0.00022815,2]
[364823219,1749256246691,-305.45,0.00022815,2]
[364823221,1749256246702,-301.02,0.00022815,2]
[364823223,1749256246712,-301.81,0.00022815,2]
[364823225,1749256246723,-305.32,0.00022815,2]
[364823227,1749256246740,-304.61,0.00022815,2]
[364823229,1749256246750,-305.85,0.00022815,2]
[364823231,1749256246760,-302.21,0.00022815,2]
[364823233,1749256246770,-305.91,0.00022815,2]
[364823235,1749256246781,-302.57,0.00022815,2]
[364823236,1749256246791,-300.69,0.00022815,2]
[364823237,1749256246802,-303.69,0.00022815,2]
[364823238,1749256246814,-304.24,0.00023614,2]
[364823239,1749256246824,-302.95,0.00023614,2]
[364823240,1749256246836,-2629.75,0.00023684,2]
[364823241,1749256246846,-208.0,0.0002376,2]
[364823242,1749256246856,-305.54,0.000238,2]
[364823243,1749256246867,-935.89,0.00023939,2]
[364823244,1749256246878,-5000.00896716,0.00024,5]
[364823245,1749256246888,-302.69,0.00024069,2]
[364823246,1749256246899,-7780.07502615,0.000242,2]
[364823247,1749256246910,-232.50211195,0.00024285,2]
[364823248,1749256246921,-208.0,0.000243,2]
[364823249,1749256246933,-403.57144388,0.000243,10]
[364823250,1749256246943,-403.57144388,0.000243,10]
[364823251,1749256246954,-403.57144388,0.000243,10]
[364823252,1749256246965,-403.57144388,0.000243,10]
[364823253,1749256246976,-403.57144388,0.000243,10]
[364823254,1749256246987,-403.57144388,0.000243,10]
[364823255,1749256246997,-403.57144388,0.000243,10]
[364823256,1749256247008,-403.57144388,0.000243,10]
[364823257,1749256247018,-305.14,0.00024446,2]
[364823260,1749256247481,-7780.07502609,0.00024562,2]
[364823261,1749256247506,-633.96,0.00024658,2]
[364823262,1749256247534,-208.0,0.0002484,2]
[364823263,1749256247545,-403.57144388,0.00024866,12]
[364823264,1749256247554,-7780.07502609,0.00024925,2]
[364823265,1749256247564,-305.36,0.00024925,2]
[364823266,1749256247574,-250.0,0.00024991,2]
[364823267,1749256247583,-3155.17,0.00025143,2]
[364823268,1749256247592,-155.22,0.00025275,2]
[364823269,1749256247602,-7780.07502609,0.00025287,2]
[364823270,1749256247612,-1951.34,0.00025348,2]
[364823271,1749256247622,-2852.25733644,0.00025363,2]
[364823272,1749256247632,-1000.0,0.00025364,2]
[364823273,1749256247641,-208.0,0.0002537,2]
[364823274,1749256247651,-2465.47008789,0.00025405,2]
[364823275,1749256247660,-1429.46,0.00025466,2]
[364823276,1749256247670,-403.57144388,0.00025486,13]
[364823277,1749256247679,-35880.30447528,0.00025495,2]
[364823278,1749256248141,-618.69307499,0.00025495,2]
[364823279,1749256248297,-417.48,0.00025495,2]
[364823280,1749256267867,1213.87314953,0.0001352,2]
[364823281,1749256267888,2000.0,0.0001352,2]
[364823282,1749256267913,2586.12685047,0.0001352,2]
[364823283,1749256290654,5800.0,0.00013512,2]
[364823286,1749256312091,492.0,0.00035616,120]
[364823287,1749256313429,5800.0,0.00013503,2]
[364823288,1749256336161,5800.0,0.00013495,2]
[364823289,1749256350492,150.0,0.00033572,120]
[364823290,1749256359443,5800.0,0.00013486,2]
[364823291,1749256382229,5800.0,0.00013478,2]
[364823292,1749256405871,5800.0,0.00013469,2]
[364823293,1749256428697,5800.0,0.00013461,2]
[364823294,1749256531002,150.0,0.0003237,120]
[364823295,1749256711029,150.0,0.00034869,120]
[364823296,1749256887073,250.0,0.00019,2]
[364823297,1749256988844,200.0,0.00035616,120]
[364823298,1749257112237,1000.0,0.00035616,120]
[364823299,1749257130500,150.0,0.00034708,120]
[364823300,1749257145279,1692.83,0.00035616,120]
[364823304,1749257229801,226.64,0.00013699,2]
[364823308,1749257304987,1098.0,0.00035616,120]
[364823310,1749257359341,500.0,0.00035616,120]
[364823311,1749257367331,500.0,0.00035616,120]
[364823312,1749257377058,500.0,0.00035616,120]
[364823313,1749257385241,500.0,0.00035616,120]
[364823314,1749257394559,500.0,0.00035616,120]
[364823315,1749257403969,500.0,0.00035616,120]
[364823316,1749257412700,500.0,0.00035616,120]
[364823317,1749257421764,500.0,0.00035616,120]
[364823318,1749257429876,500.0,0.00035616,120]
[364823319,1749257432292,-226.64,0.00020187,2]
[364823320,1749257432305,-2026.74419426,0.00020644,2]
[364823321,1749257432315,-300.0,0.00021,2]
[364823322,1749257432325,-1016.84,0.00022274,2]
[364823323,1749257432335,-205.0,0.00023256,2]
[364823324,1749257432344,-352.68,0.00023736,30]
[364823325,1749257432354,-200.0,0.00023774,2]
[364823326,1749257432363,-250.0,0.00023833,2]
[364823327,1749257432373,-1719.3,0.00023879,2]
[364823328,1749257432383,-461.87,0.00023915,2]
[364823329,1749257432392,-221.56,0.00023959,2]
[364823330,1749257432401,-1000.0,0.00023982,2]
[364823331,1749257432411,-906.36580574,0.00024007,2]
[364823332,1749257432440,-293.63419426,0.00024007,2]
[364823333,1749257432449,-135.42197598,0.00024008,2]
[364823334,1749257432460,-164.57802402,0.00024008,2]
[364823335,1749257432470,-214.32197598,0.00024009,2]
[364823336,1749257432511,-5336.27802402,0.00024009,2]
[364823337,1749257432520,-4870.78035938,0.00024031,2]
[364823381,1749257438155,-19029.21964062,0.00024031,2]
[364823382,1749257438164,-151.0,0.0002407,2]
[364823383,1749257438174,-151.0,0.0002407,2]
[364823384,1749257438184,-151.0,0.0002407,2]
[364823385,1749257438194,-151.0,0.0002407,2]
[364823386,1749257438203,-151.0,0.0002407,2]
[364823387,1749257438212,-151.0,0.0002407,2]
[364823388,1749257438221,-245.0,0.0002407,2]
[364823389,1749257438231,-682.75716258,0.00024084,2]
[364823390,1749257438240,-850.0,0.00024084,2]
[364823391,1749257438250,-62969.79,0.00024085,2]
[364823392,1749257438259,-151.0,0.00024125,2]
[364823393,1749257438269,-150.0,0.0002422,7]
[364823394,1749257438278,-150.0,0.00024294,2]
[364823395,1749257438288,-917.75,0.00024294,2]
[364823396,1749257438297,-200.0,0.00024409,2]
[364823397,1749257438306,-4141.13,0.00024507,2]
[364823398,1749257438315,-1016.84,0.00024538,2]
[364823399,1749257438324,-800.0,0.000246,8]
[364823400,1749257438334,-271.55,0.00024645,2]
[364823401,1749257438343,-1000.0,0.00024658,2]
[364823402,1749257438353,-1700.0,0.000247,9]
[364823403,1749257438362,-2600.0,0.000248,9]
[364823404,1749257438372,-500.0,0.00024809,2]
[364823405,1749257438382,-303.35,0.00024866,2]
[364823406,1749257438390,-302.43,0.00024866,2]
[364823407,1749257438399,-303.49,0.00024866,2]
[364823408,1749257438408,-303.15,0.00024866,2]
[364823409,1749257438418,-302.15,0.00024866,2]
[364823410,1749257438427,-302.68,0.00024866,2]
[364823411,1749257438437,-3400.0,0.000249,9]
[364823412,1749257438448,-465.4995733,0.000249,12]
[364823413,1749257438457,-302.64,0.00024906,2]
[364823414,1749257438467,-302.85,0.00024906,2]
[364823415,1749257438476,-303.53,0.00024906,2]
[364823416,1749257438486,-300.24,0.00024924,2]
[364823417,1749257438496,-300.96,0.00024924,2]
[364823418,1749257438506,-305.08,0.00024926,2]
[364823419,1749257438515,-305.91,0.00024926,2]
[364823420,1749257438525,-535.0,0.00024932,7]
[364823421,1749257438535,-304.54,0.00024939,2]
[364823422,1749257438544,-301.14,0.00024939,2]
[364823423,1749257438555,-304.14,0.0002496,2]
[364823424,1749257438565,-305.22,0.0002496,2]
[364823425,1749257438574,-535.0,0.00025,7]
[364823426,1749257438583,-301.6,0.0002502,2]
[364823427,1749257438593,-150.0,0.00025203,2]
[364823428,1749257438604,-301.1,0.00025266,2]
[364823429,1749257438613,-300.54,0.00025294,2]
[364823430,1749257438622,-304.81,0.00025294,2]
[364823431,1749257438631,-303.21,0.00025294,2]
[364823432,1749257438641,-303.18,0.00025294,2]
[364823433,1749257438650,-465.49957329,0.00025314,12]
[364823434,1749257438659,-237.46765467,0.00025325,2]
[364823436,1749257438669,-172.87307964,0.0002533,2]
[364823438,1749257438678,-2619.52074244,0.00025342,2]
[364823440,1749257438687,-831.4687451,0.00025342,2]
[364823442,1749257438697,-159.91410422,0.00025342,2]
[364823444,1749257438706,-997.5769829,0.00025342,2]
[364823446,1749257438715,-134269.24456866,0.000254,5]
[364823448,1749257438724,-237.96565794,0.00025421,2]
[364823450,1749257438733,-441.0,0.00025425,2]
[364823452,1749257438742,-500.0,0.0002543,2]
[364823453,1749257438752,-463.92491027,0.0002543,2]
[364823454,1749257438761,-500.0,0.0002543,2]
[364823455,1749257438770,-500.0,0.0002543,2]
[364823456,1749257438779,-347.26434201,0.0002543,2]
[364823457,1749257438788,-500.0,0.0002543,2]
[364823458,1749257438797,-500.0,0.0002543,2]
[364823459,1749257438807,-500.0,0.0002543,2]
[364823460,1749257438816,-500.0,0.0002543,2]
[364823461,1749257438825,-500.0,0.0002543,2]
[364823462,1749257438834,-500.0,0.0002543,2]
[364823463,1749257438844,-500.0,0.0002543,2]
[364823464,1749257438853,-500.0,0.0002543,2]
[364823465,1749257438862,-277.23300902,0.0002543,2]
[364823466,1749257438871,-527.90509353,0.0002543,2]
[364823467,1749257438880,-407.61993498,0.0002543,2]
[364823468,1749257438890,-159.45247386,0.0002543,2]
[364823469,1749257438900,-340.35813319,0.0002543,2]
[364823470,1749257438909,-500.0,0.0002543,2]
[364823471,1749257438918,-500.0,0.0002543,2]
[364823472,1749257438927,-307.61987953,0.0002543,2]
[364823473,1749257438936,-500.0,0.0002543,2]
[364823474,1749257438946,-500.0,0.0002543,2]
[364823475,1749257438955,-500.0,0.0002543,2]
[364823476,1749257438964,-500.0,0.0002543,2]
[364823477,1749257438974,-500.0,0.0002543,2]
[364823478,1749257438983,-500.0,0.0002543,2]
[364823479,1749257438993,-500.0,0.0002543,2]
[364823480,1749257439002,-500.0,0.0002543,2]
[364823481,1749257439011,-500.0,0.0002543,2]
[364823482,1749257439021,-500.0,0.0002543,2]
[364823483,1749257439030,-500.0,0.0002543,2]
[364823484,1749257439040,-500.0,0.0002543,2]
[364823485,1749257439050,-500.0,0.0002543,2]
[364823486,1749257439059,-500.0,0.0002543,2]
[364823487,1749257439069,-500.0,0.0002543,2]
[364823488,1749257439078,-500.0,0.0002543,2]
[364823489,1749257439087,-500.0,0.0002543,2]
[364823490,1749257439099,-500.0,0.0002543,2]
[364823491,1749257439109,-500.0,0.0002543,2]
[364823492,1749257439118,-500.0,0.0002543,2]
[364823493,1749257439127,-500.0,0.0002543,2]
[364823494,1749257439138,-500.0,0.0002543,2]
[364823495,1749257439148,-500.0,0.0002543,2]
[364823496,1749257439158,-500.0,0.0002543,2]
[364823497,1749257439168,-500.0,0.0002543,2]
[364823498,1749257439179,-216.72247591,0.0002543,2]
[364823499,1749257439188,-500.0,0.0002543,2]
[364823500,1749257439197,-500.0,0.0002543,2]
[364823501,1749257439206,-500.0,0.0002543,2]
[364823502,1749257439215,-500.0,0.0002543,2]
[364823503,1749257439224,-500.0,0.0002543,2]
[364823504,1749257439233,-500.0,0.0002543,2]
[364823505,1749257439243,-500.0,0.0002543,2]
[364823506,1749257439252,-500.0,0.0002543,2]
[364823507,1749257439263,-500.0,0.0002543,2]
[364823508,1749257439273,-290.97368614,0.0002543,2]
[364823509,1749257439283,-500.0,0.0002543,2]
[364823510,1749257439293,-500.0,0.0002543,2]
[364823511,1749257439303,-500.0,0.0002543,2]
[364823512,1749257439313,-500.0,0.0002543,2]
[364823513,1749257439322,-500.0,0.0002543,2]
[364823514,1749257439332,-500.0,0.0002543,2]
[364823515,1749257439343,-500.0,0.0002543,2]
[364823516,1749257439352,-500.0,0.0002543,2]
[364823517,1749257439361,-500.0,0.0002543,2]
[364823518,1749257439371,-500.0,0.0002543,2]
[364823519,1749257439380,-500.0,0.0002543,2]
[364823520,1749257439390,-500.0,0.0002543,2]
[364823521,1749257439399,-500.0,0.0002543,2]
[364823522,1749257439409,-500.0,0.0002543,2]
[364823523,1749257439419,-199.93462055,0.0002543,2]
[364823524,1749257439429,-500.0,0.0002543,2]
[364823525,1749257439438,-500.0,0.0002543,2]
[364823526,1749257439448,-500.0,0.0002543,2]
[364823527,1749257439457,-500.0,0.0002543,2]
[364823528,1749257439466,-500.0,0.0002543,2]
[364823529,1749257439475,-500.0,0.0002543,2]
[364823530,1749257439484,-500.0,0.0002543,2]
[364823531,1749257439494,-500.0,0.0002543,2]
[364823532,1749257439504,-500.0,0.0002543,2]
[364823533,1749257439513,-500.0,0.0002543,2]
[364823534,1749257439524,-500.0,0.0002543,2]
[364823535,1749257439533,-500.0,0.0002543,2]
[364823536,1749257439542,-500.0,0.0002543,2]
[364823537,1749257439552,-379.8450334,0.0002543,2]
[364823538,1749257439562,-500.0,0.0002543,2]
[364823539,1749257439571,-500.0,0.0002543,2]
[364823540,1749257439580,-500.0,0.0002543,2]
[364823541,1749257439589,-500.0,0.0002543,2]
[364823542,1749257439598,-500.0,0.0002543,2]
[364823543,1749257439608,-500.0,0.0002543,2]
[364823544,1749257439833,-500.0,0.0002543,2]
[364823545,1749257439843,-500.0,0.0002543,2]
[364823546,1749257439852,-8465.78663935,0.00025431,7]
[364823547,1749257439861,-10226.4507806,0.00025431,2]
[364823548,1749257439870,-1736883.33673983,0.00025431,7]
[364823549,1749257439879,-255661.269515,0.00025431,2]
[364823550,1749257439890,-30009.4574438,0.00025431,2]
[364823551,1749257439899,-151.0,0.00025442,7]
[364823552,1749257439909,-151.0,0.00025442,7]
[364823553,1749257439918,-151.0,0.00025442,7]
[364823554,1749257439927,-151.0,0.00025442,7]
[364823555,1749257439937,-151.0,0.00025442,7]
[364823556,1749257439946,-151.0,0.00025442,7]
[364823557,1749257439956,-153.573906,0.00025442,7]
[364823558,1749257439966,-151.0,0.00025442,7]
[364823559,1749257439975,-151.0,0.00025442,7]
[364823560,1749257439984,-151.0,0.00025442,7]
[364823561,1749257439993,-151.0,0.00025442,7]
[364823562,1749257440003,-151.0,0.00025442,7]
[364823563,1749257440012,-241.83522,0.00025452,7]
[364823564,1749257440022,-241.83522,0.00025452,7]
[364823565,1749257440031,-99484.0,0.00025452,2]
[364823566,1749257440040,-511.30640231,0.00025466,2]
[364823567,1749257440050,-151.0,0.00025477,7]
[364823568,1749257440059,-151.0,0.00025477,7]
[364823569,1749257440069,-151.0,0.00025477,7]
[364823570,1749257440078,-151.0,0.00025477,7]
[364823571,1749257440087,-189.976914,0.00025477,7]
[364823572,1749257440097,-189.976914,0.00025477,7]
[364823573,1749257440108,-340.181524,0.00025477,7]
[364823574,1749257440117,-340.181524,0.00025477,7]
[364823575,1749257440126,-1505.116623,0.00025477,7]
[364823576,1749257440137,-1505.116623,0.00025477,7]
[364823577,1749257440146,-151.0,0.00025477,7]
[364823578,1749257440156,-151.0,0.00025477,7]
[364823579,1749257440165,-151.0,0.00025477,7]
[364823580,1749257440174,-50783.5388205,0.00025487,2]
[364823581,1749257440183,-151.0,0.00025487,7]
[364823582,1749257440192,-289.76728,0.00025487,7]
[364823583,1749257440202,-151.0,0.00025487,7]
[364823584,1749257440211,-639.471344,0.00025487,7]
[364823585,1749257440220,-639.471344,0.00025487,7]
[364823586,1749257440230,-151.0,0.00025487,7]
[364823587,1749257440239,-151.0,0.00025487,7]
[364823588,1749257440248,-189.976914,0.00025487,7]
[364823589,1749257440258,-189.976914,0.00025487,7]
[364823590,1749257440267,-340.181524,0.00025487,7]
[364823591,1749257440276,-340.181524,0.00025487,7]
[364823592,1749257440285,-151.0,0.00025487,7]
[364823593,1749257440294,-1505.116623,0.00025487,7]
[364823594,1749257440303,-1505.116623,0.00025487,7]
[364823595,1749257440313,-354.456964,0.00025487,7]
[364823596,1749257440322,-354.456964,0.00025487,7]
[364823597,1749257440331,-151.0,0.00025487,7]
[364823598,1749257440340,-151.0,0.00025487,7]
[364823599,1749257440350,-1598.727588,0.00025487,7]
[364823600,1749257440360,-1598.727588,0.00025487,7]
[364823601,1749257440369,-1547.93706,0.00025487,7]